[Event "GrandPrix_30.05"]
[Site "Chess.com"]
[Date "2020.05.30"]
[Round "7"]
[White "LANCELOT96"]
[Black "anesar92"]
[Result "1-0"]
[WhiteElo "2271"]
[BlackElo "2350"]
[TimeControl "600+2"]
[EndTime "11:21:42 PDT"]
[Termination "LANCELOT96 won by resignation"]

1. d4 {[%clk 0:09:58.7]} 1... Nf6 {[%clk 0:10:00.2]} 2. c4 {[%clk 0:10:00]} 2...
e6 {[%clk 0:10:00.9]} 3. Nf3 {[%clk 0:10:01]} 3... Bb4+ {[%clk 0:10:00.7]} 4.
Bd2 {[%clk 0:10:01.8]} 4... Qe7 {[%clk 0:10:01.3]} 5. g3 {[%clk 0:10:03.3]} 5...
b6 {[%clk 0:09:58.2]} 6. Bg2 {[%clk 0:10:04.4]} 6... Bb7 {[%clk 0:09:59.2]} 7.
O-O {[%clk 0:10:04.8]} 7... Bxd2 {[%clk 0:09:59.2]} 8. Qxd2 {[%clk 0:10:06.7]}
8... O-O {[%clk 0:09:59.8]} 9. Nc3 {[%clk 0:10:08.1]} 9... Ne4 {[%clk
0:09:58.7]} 10. Nxe4 {[%clk 0:10:07.6]} 10... Bxe4 {[%clk 0:10:00.6]} 11. Qf4
{[%clk 0:10:07.2]} 11... d5 {[%clk 0:09:23.3]} 12. Rac1 {[%clk 0:10:07.1]} 12...
c5 {[%clk 0:08:57.7]} 13. dxc5 {[%clk 0:10:04.7]} 13... bxc5 {[%clk 0:08:57.2]}
14. cxd5 {[%clk 0:10:05.5]} 14... exd5 {[%clk 0:08:56.4]} 15. Qe5 {[%clk
0:09:46.5]} 15... Qxe5 {[%clk 0:08:21.1]} 16. Nxe5 {[%clk 0:09:48.4]} 16... Bxg2
{[%clk 0:07:41.3]} 17. Kxg2 {[%clk 0:09:50.3]} 17... Na6 {[%clk 0:07:42.2]} 18.
Rfd1 {[%clk 0:09:49.8]} 18... d4 {[%clk 0:07:29.1]} 19. Nd3 {[%clk 0:09:50.8]}
19... Rab8 {[%clk 0:07:21.4]} 20. b3 {[%clk 0:09:49.6]} 20... Rfe8 {[%clk
0:06:57.5]} 21. Kf1 {[%clk 0:09:40.9]} 21... Rb5 {[%clk 0:06:47.6]} 22. Rc4
{[%clk 0:09:40]} 22... Ra5 {[%clk 0:06:19.3]} 23. Rd2 {[%clk 0:09:40]} 23... h6
{[%clk 0:05:43.2]} 24. Rdc2 {[%clk 0:09:38.2]} 24... Rb8 {[%clk 0:05:43.1]} 25.
Nxc5 {[%clk 0:08:21.1]} 25... Nb4 {[%clk 0:05:40.5]} 26. Rd2 {[%clk 0:08:21.3]}
26... Nxa2 {[%clk 0:05:17.2]} 27. Rdxd4 {[%clk 0:08:18]} 27... Rc8 {[%clk
0:04:51.1]} 28. Nd3 {[%clk 0:07:47]} 28... Rxc4 {[%clk 0:04:41.8]} 29. Rxc4
{[%clk 0:07:48.9]} 29... Ra3 {[%clk 0:04:41]} 30. Ra4 {[%clk 0:07:44.7]} 30...
Rxa4 {[%clk 0:04:35.9]} 31. bxa4 {[%clk 0:07:46.6]} 31... Nc3 {[%clk 0:04:32.7]}
32. Nb2 {[%clk 0:07:47.4]} 32... Kf8 {[%clk 0:04:28.6]} 33. Ke1 {[%clk
0:07:48.5]} 33... Ke7 {[%clk 0:04:26.8]} 34. Kd2 {[%clk 0:07:49.7]} 34... Nd5
{[%clk 0:04:27.9]} 35. e4 {[%clk 0:07:47.3]} 35... Nf6 {[%clk 0:04:21.5]} 36. f3
{[%clk 0:07:47.2]} 36... Nd7 {[%clk 0:04:21.4]} 37. Ke3 {[%clk 0:07:45.2]} 37...
f6 {[%clk 0:04:12.6]} 38. f4 {[%clk 0:07:40.5]} 38... Kd6 {[%clk 0:04:10.3]} 39.
Kd4 {[%clk 0:07:38.2]} 39... g5 {[%clk 0:04:03.4]} 40. Nc4+ {[%clk 0:07:37.5]}
40... Kc6 {[%clk 0:04:03.9]} 41. f5 {[%clk 0:05:24.1]} 41... Nc5 {[%clk
0:03:46.3]} 42. e5 {[%clk 0:05:13.4]} 42... Nd7 {[%clk 0:03:43]} 43. e6 {[%clk
0:05:06.9]} 43... Nb8 {[%clk 0:03:43.7]} 44. Ne3 {[%clk 0:05:03]} 44... Kd6
{[%clk 0:03:39.1]} 45. Ng4 {[%clk 0:05:00.8]} 45... Nc6+ {[%clk 0:03:35.4]} 46.
Ke4 {[%clk 0:05:01.8]} 46... Ke7 {[%clk 0:03:12.8]} 47. Nxh6 {[%clk 0:05:02.7]}
47... Kf8 {[%clk 0:03:14.4]} 48. h4 {[%clk 0:05:02.2]} 48... gxh4 {[%clk
0:03:05.3]} 49. gxh4 {[%clk 0:05:03]} 1-0

[Event "GrandPrix_30.05"]
[Site "Chess.com"]
[Date "2020.05.30"]
[Round "7"]
[White "Alexander_Donchenko"]
[Black "MikaelyanArman1996"]
[Result "1-0"]
[WhiteElo "2630"]
[BlackElo "2393"]
[TimeControl "600+2"]
[EndTime "11:21:46 PDT"]
[Termination "Alexander_Donchenko won by resignation"]

1. e4 {[%clk 0:10:01.9]} 1... e5 {[%clk 0:09:58.9]} 2. Nf3 {[%clk 0:10:02.8]}
2... Nc6 {[%clk 0:09:59.9]} 3. Bb5 {[%clk 0:10:03.7]} 3... a6 {[%clk 0:10:00.8]}
4. Ba4 {[%clk 0:10:04.6]} 4... Nf6 {[%clk 0:10:01.1]} 5. O-O {[%clk 0:10:05.4]}
5... Be7 {[%clk 0:10:02.2]} 6. d3 {[%clk 0:10:06]} 6... b5 {[%clk 0:09:59.8]} 7.
Bb3 {[%clk 0:10:06.6]} 7... d6 {[%clk 0:10:00.9]} 8. a3 {[%clk 0:10:07.2]} 8...
O-O {[%clk 0:10:00.1]} 9. Nc3 {[%clk 0:10:05.8]} 9... Bg4 {[%clk 0:09:20.2]} 10.
Be3 {[%clk 0:10:05.4]} 10... Nd4 {[%clk 0:09:19]} 11. Bxd4 {[%clk 0:10:05.1]}
11... exd4 {[%clk 0:09:20.1]} 12. Nd5 {[%clk 0:10:00.5]} 12... Nd7 {[%clk
0:09:13.2]} 13. h3 {[%clk 0:09:58.2]} 13... Bxf3 {[%clk 0:09:11]} 14. Qxf3
{[%clk 0:10:00.1]} 14... c6 {[%clk 0:09:08.6]} 15. Nf4 {[%clk 0:09:37]} 15...
Nc5 {[%clk 0:09:04]} 16. Ba2 {[%clk 0:09:36.4]} 16... a5 {[%clk 0:08:49.1]} 17.
Ne2 {[%clk 0:09:35.9]} 17... Bf6 {[%clk 0:08:47.6]} 18. Qh5 {[%clk 0:09:06.7]}
18... g6 {[%clk 0:08:33.6]} 19. Qg4 {[%clk 0:08:53.7]} 19... b4 {[%clk
0:07:19.2]} 20. f4 {[%clk 0:08:51]} 20... b3 {[%clk 0:06:54.7]} 21. Bxb3 {[%clk
0:08:49.8]} 21... Rb8 {[%clk 0:06:22.2]} 22. Ba2 {[%clk 0:08:42.5]} 22... Rxb2
{[%clk 0:06:16.1]} 23. f5 {[%clk 0:08:43.2]} 23... Kh8 {[%clk 0:05:24.6]} 24.
fxg6 {[%clk 0:08:18.8]} 24... fxg6 {[%clk 0:05:21.4]} 25. Nf4 {[%clk 0:08:17.8]}
25... Qe8 {[%clk 0:03:55.9]} 26. Rf2 {[%clk 0:07:44.8]} 26... Be5 {[%clk
0:03:41.6]} 27. Raf1 {[%clk 0:06:36.3]} 27... Bxf4 {[%clk 0:02:22]} 28. Rxf4
{[%clk 0:06:38.2]} 28... Rxf4 {[%clk 0:02:21.2]} 29. Qxf4 {[%clk 0:06:39.3]}
29... Rxa2 {[%clk 0:02:17.8]} 30. Qxd6 {[%clk 0:06:40.2]} 30... Nd7 {[%clk
0:01:38.3]} 31. e5 {[%clk 0:06:34.9]} 31... Kg7 {[%clk 0:01:21.3]} 32. e6 {[%clk
0:06:05.9]} 32... Nf6 {[%clk 0:01:21.8]} 33. Qc7+ {[%clk 0:06:05.5]} 33... Kh6
{[%clk 0:01:00.4]} 34. Qf4+ {[%clk 0:06:04.2]} 34... Kg7 {[%clk 0:00:49.1]} 35.
Qxf6+ {[%clk 0:06:04.3]} 35... Kh6 {[%clk 0:00:50]} 36. Qh4+ {[%clk 0:06:03]}
1-0

[Event "GrandPrix_30.05"]
[Site "Chess.com"]
[Date "2020.05.30"]
[Round "7"]
[White "GMStefanova"]
[Black "Jaka_Brilej"]
[Result "1-0"]
[WhiteElo "2309"]
[BlackElo "2134"]
[TimeControl "600+2"]
[EndTime "11:21:48 PDT"]
[Termination "GMStefanova won by resignation"]

1. Nf3 {[%clk 0:10:00.7]} 1... f5 {[%clk 0:09:59.5]} 2. d4 {[%clk 0:09:47.4]}
2... Nf6 {[%clk 0:10:00]} 3. Nc3 {[%clk 0:09:44.4]} 3... e6 {[%clk 0:09:52.9]}
4. h3 {[%clk 0:09:21.3]} 4... Be7 {[%clk 0:09:29.6]} 5. Qd3 {[%clk 0:09:14.8]}
5... d5 {[%clk 0:09:28.5]} 6. g4 {[%clk 0:09:13.3]} 6... O-O {[%clk 0:09:24.2]}
7. gxf5 {[%clk 0:08:50.3]} 7... exf5 {[%clk 0:09:24.2]} 8. Ne5 {[%clk
0:08:49.2]} 8... c6 {[%clk 0:09:07.7]} 9. Rg1 {[%clk 0:08:45.4]} 9... Ne4 {[%clk
0:09:07.2]} 10. Nxe4 {[%clk 0:06:42.4]} 10... dxe4 {[%clk 0:08:45.4]} 11. Qg3
{[%clk 0:05:08.5]} 11... Bf6 {[%clk 0:08:40.9]} 12. Bh6 {[%clk 0:05:03.1]} 12...
Qe7 {[%clk 0:07:52.5]} 13. O-O-O {[%clk 0:04:37.7]} 13... Be6 {[%clk 0:07:51.2]}
14. e3 {[%clk 0:03:53.8]} 14... Nd7 {[%clk 0:06:36.9]} 15. Bc4 {[%clk
0:03:20.1]} 15... Bxc4 {[%clk 0:06:05.3]} 16. Nxc4 {[%clk 0:03:18.8]} 16... b5
{[%clk 0:05:48.5]} 17. Nd6 {[%clk 0:03:06]} 17... f4 {[%clk 0:05:19.5]} 18. Bxf4
{[%clk 0:03:02.4]} 18... Bh4 {[%clk 0:05:18]} 19. Qg4 {[%clk 0:02:42.3]} 19...
Bxf2 {[%clk 0:04:28.8]} 20. Rg2 {[%clk 0:02:41.7]} 20... Nf6 {[%clk 0:04:28.7]}
21. Nf5 {[%clk 0:02:21.8]} 21... Qd7 {[%clk 0:04:08.6]} 22. Qxg7+ {[%clk
0:02:11.8]} 22... Qxg7 {[%clk 0:04:08.7]} 23. Nxg7 {[%clk 0:02:10.5]} 23... Kf7
{[%clk 0:03:58.5]} 24. Nf5 {[%clk 0:02:08.5]} 24... Ke6 {[%clk 0:03:56.2]} 25.
Rxf2 {[%clk 0:02:01.2]} 1-0

[Event "GrandPrix_30.05"]
[Site "Chess.com"]
[Date "2020.05.30"]
[Round "7"]
[White "iceboy88"]
[Black "NikolaN98"]
[Result "0-1"]
[WhiteElo "2218"]
[BlackElo "2169"]
[TimeControl "600+2"]
[EndTime "11:21:50 PDT"]
[Termination "NikolaN98 won by resignation"]

1. Nf3 {[%clk 0:10:01.9]} 1... f5 {[%clk 0:10:00.4]} 2. d4 {[%clk 0:09:59.1]}
2... Nf6 {[%clk 0:10:01]} 3. c4 {[%clk 0:09:57.1]} 3... e6 {[%clk 0:10:02.2]} 4.
Nc3 {[%clk 0:09:56.6]} 4... b6 {[%clk 0:10:02.7]} 5. g3 {[%clk 0:09:50.4]} 5...
Bb4 {[%clk 0:10:00.4]} 6. Bg2 {[%clk 0:09:50.6]} 6... Bb7 {[%clk 0:10:01.1]} 7.
O-O {[%clk 0:09:50.8]} 7... Bxc3 {[%clk 0:10:01.8]} 8. bxc3 {[%clk 0:09:51.5]}
8... O-O {[%clk 0:10:03.3]} 9. a4 {[%clk 0:09:50.6]} 9... a5 {[%clk 0:09:59]}
10. Ba3 {[%clk 0:09:39]} 10... d6 {[%clk 0:09:54.6]} 11. c5 {[%clk 0:09:36.7]}
11... Ne4 {[%clk 0:09:48.7]} 12. Qb3 {[%clk 0:09:23.6]} 12... Re8 {[%clk
0:09:25.8]} 13. c4 {[%clk 0:08:36.3]} 13... Nd7 {[%clk 0:09:16.6]} 14. cxd6
{[%clk 0:08:09.9]} 14... cxd6 {[%clk 0:09:15.5]} 15. Rfd1 {[%clk 0:08:08.8]}
15... Rc8 {[%clk 0:08:40.3]} 16. Rac1 {[%clk 0:08:07]} 16... Qc7 {[%clk
0:08:34.1]} 17. d5 {[%clk 0:06:58.5]} 17... e5 {[%clk 0:08:31]} 18. Nh4 {[%clk
0:06:25.9]} 18... Nec5 {[%clk 0:08:23.6]} 19. Qc2 {[%clk 0:06:24.1]} 19... g6
{[%clk 0:08:21.6]} 20. Nf3 {[%clk 0:05:58.7]} 20... Ba6 {[%clk 0:08:01.5]} 21.
Ng5 {[%clk 0:05:46.3]} 21... Kg7 {[%clk 0:07:34.9]} 22. h4 {[%clk 0:05:26.4]}
22... h6 {[%clk 0:07:30.8]} 23. Ne6+ {[%clk 0:04:35.1]} 23... Nxe6 {[%clk
0:07:29.3]} 24. dxe6 {[%clk 0:04:35.6]} 24... Rxe6 {[%clk 0:07:31.2]} 25. Bd5
{[%clk 0:04:22.3]} 25... Rf6 {[%clk 0:07:29.7]} 26. h5 {[%clk 0:04:12.6]} 26...
Rcf8 {[%clk 0:07:26.5]} 27. hxg6 {[%clk 0:04:12.5]} 27... Rxg6 {[%clk
0:07:26.3]} 28. Bg2 {[%clk 0:03:49.3]} 28... Nc5 {[%clk 0:07:18.3]} 29. Bb2
{[%clk 0:03:41.4]} 29... f4 {[%clk 0:07:10.7]} 30. Be4 {[%clk 0:02:30.9]} 30...
Nxe4 {[%clk 0:06:51.5]} 31. Qxe4 {[%clk 0:02:30.2]} 31... Bb7 {[%clk 0:06:51.6]}
32. Qd3 {[%clk 0:02:30.8]} 32... fxg3 {[%clk 0:06:40.7]} 33. f3 {[%clk
0:02:31.8]} 33... Qc5+ {[%clk 0:06:31.4]} 34. e3 {[%clk 0:02:28.7]} 34... Rxf3
{[%clk 0:06:29.8]} 35. Ba3 {[%clk 0:02:24.3]} 35... Qc6 {[%clk 0:06:15.5]} 36.
Qd5 {[%clk 0:01:30.2]} 36... Qc8 {[%clk 0:06:13.4]} 37. Bxd6 {[%clk 0:01:13.2]}
37... Bxd5 {[%clk 0:06:07]} 38. Bxe5+ {[%clk 0:01:14.1]} 38... Kg8 {[%clk
0:05:51.7]} 39. cxd5 {[%clk 0:01:14.7]} 39... Qh3 {[%clk 0:05:50.6]} 40. Rc8+
{[%clk 0:01:11.7]} 0-1

[Event "GrandPrix_30.05"]
[Site "Chess.com"]
[Date "2020.05.30"]
[Round "7"]
[White "Flawless_Fighter"]
[Black "Yurovskykh_Alexander"]
[Result "1-0"]
[WhiteElo "2196"]
[BlackElo "2213"]
[TimeControl "600+2"]
[EndTime "11:22:00 PDT"]
[Termination "Flawless_Fighter won by resignation"]

1. e4 {[%clk 0:10:01.9]} 1... d5 {[%clk 0:09:53.7]} 2. exd5 {[%clk 0:10:02.4]}
2... Qxd5 {[%clk 0:09:52.4]} 3. Nc3 {[%clk 0:10:02.9]} 3... Qd8 {[%clk
0:09:51.6]} 4. g3 {[%clk 0:10:02.7]} 4... Nf6 {[%clk 0:09:50.6]} 5. Bg2 {[%clk
0:10:02.9]} 5... c6 {[%clk 0:09:52.2]} 6. Nf3 {[%clk 0:10:03.8]} 6... Bg4 {[%clk
0:09:44.8]} 7. h3 {[%clk 0:10:03.1]} 7... Bxf3 {[%clk 0:09:44.2]} 8. Qxf3 {[%clk
0:10:02.1]} 8... e6 {[%clk 0:09:45.3]} 9. O-O {[%clk 0:10:00]} 9... Nbd7 {[%clk
0:09:46.1]} 10. d3 {[%clk 0:10:01.1]} 10... Be7 {[%clk 0:09:47.2]} 11. Re1
{[%clk 0:09:52.8]} 11... O-O {[%clk 0:09:48.2]} 12. h4 {[%clk 0:09:50.9]} 12...
Nb6 {[%clk 0:09:31.9]} 13. Bd2 {[%clk 0:09:42.1]} 13... Nbd5 {[%clk 0:09:32.8]}
14. Ne4 {[%clk 0:09:39.2]} 14... Nxe4 {[%clk 0:09:33.6]} 15. dxe4 {[%clk
0:09:29.8]} 15... Nf6 {[%clk 0:09:31]} 16. Rad1 {[%clk 0:09:27.8]} 16... Qb6
{[%clk 0:09:30.5]} 17. e5 {[%clk 0:08:49.4]} 17... Nd5 {[%clk 0:09:22]} 18. Qb3
{[%clk 0:08:08.4]} 18... Qxb3 {[%clk 0:09:13.5]} 19. axb3 {[%clk 0:08:08.1]}
19... Rfd8 {[%clk 0:09:11.6]} 20. Be4 {[%clk 0:08:00.5]} 20... Rd7 {[%clk
0:08:58.3]} 21. c4 {[%clk 0:07:49.2]} 21... Nc7 {[%clk 0:08:47.9]} 22. Be3
{[%clk 0:06:36.2]} 22... Rad8 {[%clk 0:08:31.1]} 23. Ra1 {[%clk 0:06:23.4]}
23... a6 {[%clk 0:08:18.6]} 24. Bb6 {[%clk 0:06:23.8]} 24... h5 {[%clk
0:08:15.8]} 25. Kf1 {[%clk 0:06:20.4]} 25... g6 {[%clk 0:08:16.5]} 26. Ke2
{[%clk 0:05:57.3]} 26... Rd2+ {[%clk 0:08:06.9]} 27. Ke3 {[%clk 0:05:49.4]}
27... R8d7 {[%clk 0:08:04.6]} 28. Re2 {[%clk 0:05:36.4]} 28... Rxe2+ {[%clk
0:07:59.8]} 29. Kxe2 {[%clk 0:05:38.3]} 29... Na8 {[%clk 0:07:57.1]} 30. Be3
{[%clk 0:05:38.8]} 30... Nc7 {[%clk 0:07:53.7]} 31. f3 {[%clk 0:05:25]} 31...
Ne8 {[%clk 0:07:52.8]} 32. Rh1 {[%clk 0:05:21.2]} 32... Ng7 {[%clk 0:07:49.2]}
33. g4 {[%clk 0:05:14.2]} 33... Rd8 {[%clk 0:07:37.3]} 34. Bb6 {[%clk
0:05:11.9]} 34... Rd7 {[%clk 0:07:38]} 35. Bf2 {[%clk 0:05:13.5]} 35... Rd8
{[%clk 0:07:37.1]} 36. Ra1 {[%clk 0:05:04.3]} 36... Bb4 {[%clk 0:07:22.4]} 37.
Be3 {[%clk 0:04:53.9]} 37... Be7 {[%clk 0:07:22.9]} 38. Rh1 {[%clk 0:04:28.3]}
38... Rd7 {[%clk 0:07:22.4]} 39. Bf2 {[%clk 0:04:23.9]} 39... Bb4 {[%clk
0:07:21.3]} 40. Bd3 {[%clk 0:04:17.5]} 40... Be7 {[%clk 0:07:17.7]} 41. Ra1
{[%clk 0:04:17.2]} 41... Kf8 {[%clk 0:06:46.3]} 42. Ra4 {[%clk 0:04:17.7]} 42...
Ke8 {[%clk 0:06:40.3]} 43. b4 {[%clk 0:04:04.5]} 43... Kd8 {[%clk 0:05:54.8]}
44. b5 {[%clk 0:03:56]} 44... axb5 {[%clk 0:04:46.5]} 45. Bb6+ {[%clk
0:03:42.2]} 45... Ke8 {[%clk 0:04:47.7]} 46. Ra8+ {[%clk 0:03:42.3]} 46... Bd8
{[%clk 0:04:49.2]} 47. cxb5 {[%clk 0:03:39.5]} 47... Ke7 {[%clk 0:04:34.2]} 48.
Bc5+ {[%clk 0:03:39.5]} 48... Ke8 {[%clk 0:04:34.9]} 49. bxc6 {[%clk 0:03:14.9]}
49... bxc6 {[%clk 0:04:36.8]} 50. Be4 {[%clk 0:03:14.2]} 1-0

[Event "GrandPrix_30.05"]
[Site "Chess.com"]
[Date "2020.05.30"]
[Round "7"]
[White "Borisss85"]
[Black "fm_magua"]
[Result "1/2-1/2"]
[WhiteElo "2110"]
[BlackElo "1902"]
[TimeControl "600+2"]
[EndTime "11:22:23 PDT"]
[Termination "Game drawn by repetition"]

1. e4 {[%clk 0:09:55.6]} 1... c5 {[%clk 0:10:01]} 2. Nf3 {[%clk 0:09:54.5]} 2...
Nc6 {[%clk 0:10:02.2]} 3. d4 {[%clk 0:09:55.4]} 3... cxd4 {[%clk 0:10:03.3]} 4.
Nxd4 {[%clk 0:09:55.9]} 4... e5 {[%clk 0:10:04.9]} 5. Nb5 {[%clk 0:09:56.4]}
5... d6 {[%clk 0:10:06]} 6. c4 {[%clk 0:09:56.7]} 6... Be7 {[%clk 0:10:06.7]} 7.
Be2 {[%clk 0:09:57]} 7... Be6 {[%clk 0:10:03.7]} 8. b3 {[%clk 0:09:56.8]} 8...
a6 {[%clk 0:10:04.3]} 9. N5c3 {[%clk 0:09:57.3]} 9... Bg5 {[%clk 0:10:03.7]} 10.
Ba3 {[%clk 0:09:53.2]} 10... Nd4 {[%clk 0:09:58.6]} 11. O-O {[%clk 0:09:48.7]}
11... Ne7 {[%clk 0:09:59.7]} 12. Nd2 {[%clk 0:09:22.4]} 12... Bxd2 {[%clk
0:09:51.5]} 13. Qxd2 {[%clk 0:09:22.2]} 13... Qa5 {[%clk 0:09:50.4]} 14. Bb2
{[%clk 0:09:11.3]} 14... O-O {[%clk 0:09:50.3]} 15. Bd3 {[%clk 0:08:36.4]} 15...
b5 {[%clk 0:09:45.3]} 16. cxb5 {[%clk 0:08:32]} 16... axb5 {[%clk 0:09:46]} 17.
Rfd1 {[%clk 0:08:24.7]} 17... Nec6 {[%clk 0:09:24.9]} 18. Nd5 {[%clk 0:08:03.7]}
18... Qa7 {[%clk 0:08:53.7]} 19. Kh1 {[%clk 0:07:52.8]} 19... Rab8 {[%clk
0:08:39.6]} 20. Nb4 {[%clk 0:07:40.4]} 20... Rfd8 {[%clk 0:08:02.2]} 21. Nxc6
{[%clk 0:07:29]} 21... Nxc6 {[%clk 0:08:03]} 22. Rdc1 {[%clk 0:06:48.4]} 22...
Nd4 {[%clk 0:07:59.5]} 23. Qb4 {[%clk 0:06:39.3]} 23... d5 {[%clk 0:07:56.8]}
24. Bxd4 {[%clk 0:06:22.8]} 24... exd4 {[%clk 0:07:57.6]} 25. e5 {[%clk
0:06:20.2]} 25... Rdc8 {[%clk 0:07:44.2]} 26. f4 {[%clk 0:05:43.9]} 26... Rxc1+
{[%clk 0:07:42.8]} 27. Rxc1 {[%clk 0:05:44]} 27... Qxa2 {[%clk 0:07:28.7]} 28.
f5 {[%clk 0:05:34.2]} 28... Rc8 {[%clk 0:07:29.8]} 29. Rxc8+ {[%clk 0:04:14.7]}
29... Bxc8 {[%clk 0:07:30.6]} 30. h3 {[%clk 0:04:13.3]} 30... Qf2 {[%clk
0:07:21.5]} 31. Qd6 {[%clk 0:03:43.4]} 31... h5 {[%clk 0:06:57.5]} 32. f6 {[%clk
0:01:52.9]} 32... Bf5 {[%clk 0:06:42.9]} 33. fxg7 {[%clk 0:01:37.3]} 33... Kh7
{[%clk 0:06:19.8]} 34. Qf8 {[%clk 0:00:20.1]} 34... Qe1+ {[%clk 0:05:57.7]} 35.
Kh2 {[%clk 0:00:18.1]} 35... Qxe5+ {[%clk 0:05:58.6]} 36. Kh1 {[%clk 0:00:18.2]}
36... Qe1+ {[%clk 0:05:57]} 37. Kh2 {[%clk 0:00:19.2]} 37... Qe5+ {[%clk
0:05:58.6]} 38. Kh1 {[%clk 0:00:20.4]} 38... Qe1+ {[%clk 0:05:59.6]} 39. Kh2
{[%clk 0:00:21.6]} 39... Qe5+ {[%clk 0:06:00.8]} 1/2-1/2

[Event "GrandPrix_30.05"]
[Site "Chess.com"]
[Date "2020.05.30"]
[Round "7"]
[White "yamalchess"]
[Black "Baron_von_Koenig"]
[Result "1-0"]
[WhiteElo "2366"]
[BlackElo "2148"]
[TimeControl "600+2"]
[EndTime "11:22:25 PDT"]
[Termination "yamalchess won by checkmate"]

1. d4 {[%clk 0:10:01.9]} 1... Nc6 {[%clk 0:10:00.6]} 2. c4 {[%clk 0:10:01.6]}
2... e5 {[%clk 0:10:01]} 3. d5 {[%clk 0:10:02.3]} 3... Bb4+ {[%clk 0:10:01.5]}
4. Bd2 {[%clk 0:10:01.8]} 4... Bxd2+ {[%clk 0:10:01.8]} 5. Qxd2 {[%clk
0:10:02.9]} 5... Nce7 {[%clk 0:10:03.3]} 6. Nc3 {[%clk 0:10:03.3]} 6... d6
{[%clk 0:10:04.5]} 7. g3 {[%clk 0:09:57.5]} 7... f5 {[%clk 0:10:05.1]} 8. Bg2
{[%clk 0:09:54]} 8... Nf6 {[%clk 0:10:06.1]} 9. Nh3 {[%clk 0:09:50.3]} 9... O-O
{[%clk 0:10:05.9]} 10. f4 {[%clk 0:09:46.8]} 10... e4 {[%clk 0:07:16.2]} 11. Nf2
{[%clk 0:09:43.9]} 11... c5 {[%clk 0:07:07.2]} 12. e3 {[%clk 0:09:22.7]} 12...
Bd7 {[%clk 0:07:07.5]} 13. a4 {[%clk 0:09:21.1]} 13... b6 {[%clk 0:07:05.2]} 14.
O-O {[%clk 0:08:58.4]} 14... a6 {[%clk 0:07:06.2]} 15. h3 {[%clk 0:08:53.5]}
15... b5 {[%clk 0:06:26.9]} 16. axb5 {[%clk 0:08:29.5]} 16... axb5 {[%clk
0:06:27.5]} 17. cxb5 {[%clk 0:08:23.1]} 17... Qb6 {[%clk 0:06:23.2]} 18. g4
{[%clk 0:08:12.5]} 18... g6 {[%clk 0:06:22.9]} 19. gxf5 {[%clk 0:08:04]} 19...
gxf5 {[%clk 0:06:22.9]} 20. Kh2 {[%clk 0:08:03.3]} 20... Bxb5 {[%clk 0:06:13.3]}
21. Rxa8 {[%clk 0:07:04.9]} 21... Rxa8 {[%clk 0:06:12.2]} 22. Rg1 {[%clk
0:07:05.9]} 22... Kf7 {[%clk 0:06:07.4]} 23. Bxe4 {[%clk 0:06:44]} 23... fxe4
{[%clk 0:06:03]} 24. Nfxe4 {[%clk 0:06:44.2]} 24... Nxe4 {[%clk 0:05:34.8]} 25.
Nxe4 {[%clk 0:06:43.3]} 25... Rg8 {[%clk 0:05:21.7]} 26. Rxg8 {[%clk 0:06:04.1]}
26... Nxg8 {[%clk 0:04:56.9]} 27. Ng5+ {[%clk 0:05:56.7]} 27... Ke8 {[%clk
0:04:19.2]} 28. Qc3 {[%clk 0:05:24.3]} 28... Ne7 {[%clk 0:04:10.4]} 29. Qf6
{[%clk 0:05:04.5]} 29... Bd7 {[%clk 0:02:52.7]} 30. Ne6 {[%clk 0:04:27.5]} 30...
Bxe6 {[%clk 0:01:45.3]} 31. dxe6 {[%clk 0:04:27.3]} 31... Nd5 {[%clk 0:01:26.5]}
32. Qf7+ {[%clk 0:04:27.4]} 32... Kd8 {[%clk 0:01:27.5]} 33. Qd7# {[%clk
0:04:28.4]} 1-0